Cogmind - Beta 17 @@@ ROGUE MODE // 2026.07.25 @ 15:39:08 Player: Akl Result: Core destroyed Performance ------------- Evolutions (2) 1000 Regions Visited (4) 800 Robots Destroyed (24) 120 Value Destroyed (482) 482 Prototype IDs (5) 100 Alien Tech Used (0) 0 Bonus (0) 0 TOTAL SCORE: 2502 Bonus ------- None Cogmind --------- Core Integrity 0/550 Matter 227/300 Energy 100/100 System Corruption 4% Temperature Cool (0) Movement Core (50) Location -8/Materials Parts ------- > --- POWER (1) -------- (None) > --- PROPULSION (4) --- (None) > --- UTILITY (3) ------ Advanced Visual Processing Unit > --- WEAPON (3) ------- (None) > --- INVENTORY (5) ---- Ion Engine Seismic Detector Particle Charger Pulse Rifle Pulse Rifle Peak State ------------ > --- POWER ------------ Light Nuclear Core > --- PROPULSION ------- Flight Unit Flight Unit > --- UTILITY ---------- Heat Sink Advanced Visual Processing Unit Improved Targeting Computer > --- WEAPON ----------- Spread Laser Pulse Rifle > --- INVENTORY -------- Ion Engine Seismic Detector Particle Charger Pulse Rifle Pulse Rifle [Rating: 17] Favorites ----------- Power Ion Engine Engine Ion Engine Power Core Light Nuclear Core Propulsion Flight Unit Leg Aluminum Leg Wheel Wheel Flight Unit Flight Unit Utility Improved Terrain Scanner Device Improved Terrain Scanner Storage Compact Battery Processor Improved Targeting Computer Protection Backup Plating I Weapon Small Laser Energy Gun Small Laser Ballistic Gun Light Assault Rifle Launcher Grenade Launcher Special Weapon Mining Laser Build | -11 -10 -9 -9 -8 ------- Run | Yrd Mat Mat Min Mat Slots Evolved 4 | . . 2 . 2 Power . | . . . . . Propulsion 2 | . . 1 . 1 Utility 1 | . . . . 1 Weapon 1 | . . 1 . . Parts Attached 31 | 6 6 6 10 3 Power 3 | 1 . . 1 1 Engine 2 | 1 . . 1 . Core 1 | . . . . 1 Reactor . | . . . . . Propulsion 9 | 2 1 3 3 . Treads . | . . . . . Leg 2 | 1 1 . . . Wheel 1 | 1 . . . . Hover . | . . . . . Flight 6 | . . 3 3 . Utility 6 | 1 1 1 2 1 Device 2 | . 1 . 1 . Storage 2 | 1 . 1 . . Processor 2 | . . . 1 1 Hackware . | . . . . . Protection . | . . . . . Artifact . | . . . . . Weapon 13 | 2 4 2 4 1 Energy Gun 7 | 1 2 1 3 . Energy Cannon . | . . . . . Ballistic Gun 2 | 1 . . 1 . Ballistic Cannon . | . . . . . Launcher 3 | . 2 . . 1 Special Weapon 1 | . . 1 . . Impact Weapon . | . . . . . Slashing Weapon . | . . . . . Piercing Weapon . | . . . . . Special Melee Weapon . | . . . . . Unidentified Prototypes . | . . . . . Parts Lost 25 | . 6 8 2 9 Power 2 | . 1 1 . . Propulsion 9 | . 2 3 . 4 Utility 4 | . 1 2 . 1 Weapon 10 | . 2 2 2 4 Highest Loss Streak 9 | . 6 8 1 9 To Critical Strikes . | . . . . . Average Backups 3 | . 3 4 4 4 Power . | . . . . . Propulsion . | . . . . . Utility 1 | . 2 2 2 2 Weapon 1 | . 1 2 2 2 Tool/Special . | . . . . . Unused Backups 3 | . . . . 3 Power . | . . . . . Propulsion . | . . . . . Utility 2 | . . . . 2 Weapon 1 | . . . . 1 Tool/Special . | . . . . . Average Slot Usage (%) 66 | . 75 59 66 50 Engine 7 | . 12 2 7 1 Leg 7 | . 15 7 . . Wheel 4 | . 11 . . . Flight 12 | . . 9 28 15 Device 5 | . 8 . 2 4 Storage 1 | . . 7 . . Processor 2 | . . . 2 12 Energy Gun 16 | . 15 29 15 9 Ballistic Gun 4 | . 3 . 8 2 Launcher 3 | . 7 . . 1 Peak Build Rating 17 | 6 8 12 13 17 Average Rating 7 | 4 6 7 8 10 On Entrance 5 | . 5 3 4 13 Avg Prop Armor Cover (%) 9 | 11 9 8 9 . Naked Turns . | . . . . . Heaviest Build 13 | 8 10 8 13 13 Greatest Support 20 | 10 10 12 15 20 Greatest Overweight (x) 2 | . 2 1 1 1 Average Overweight (x) . | . . . . . Largest Inventory Capacity 8 | 8 5 5 5 5 Average Capacity 5 | 5 5 5 5 5 Most Carried 5 | 3 4 5 5 5 Average Carried 3 | 1 3 4 4 4 Final Capacity 5 | 5 5 5 5 5 Final Carried 5 | 3 3 5 5 5 Class Distribution -------------------- 64% | Mutant 17% | Scavenger-Gunner 7% | Scavenger-Mutant 6% | Gunner 3% | Scavenger-Tank Dominant Class ---------------- Mutant | -10/Materials Gunner | -9/Materials Scavenger-Gunner | -9/Mines Mutant | -8/Materials Resources | -11 -10 -9 -9 -8 ----------- Run | Yrd Mat Mat Min Mat Matter Collected 563 | 284 130 45 104 . Remotely . | . . . . . Salvage Created 492 | 125 216 61 81 9 Parts 43 | 6 19 6 10 2 Haulers Intercepted . | . . . . . Recyclers Shooed . | . . . . . Parts Field Recycled . | . . . . . Retrieved Matter . | . . . . . Parts Self-Destructed . | . . . . . Prevented . | . . . . . Parts Restored . | . . . . . Kills | -11 -10 -9 -9 -8 ------- Run | Yrd Mat Mat Min Mat Combat Hostiles Destroyed 20 | . 10 4 4 2 Guns 10 | . 1 4 4 1 AOE 9 | . 8 . . 1 Classes Destroyed 7 | 2 3 . . 2 Builder 1 | . 1 . . . Tunneler 2 | 2 . . . . Recycler 1 | 1 . . . . Swarmer 10 | . 3 4 3 . Cutter 1 | . . . . 1 Grunt 8 | . 7 . 1 . Sentry 1 | . . . . 1 Best Kill Streak 4 | 1 4 3 3 1 Combat Bots Only 4 | . 4 3 3 1 Max Kills in Single Turn 3 | 1 3 1 1 1 Gunslinging . | . . . . . Exploded 3 | . 3 . . 1 Melee . | . . . . . Uniques/NPCs Destroyed . | . . . . . Combat | -11 -10 -9 -9 -8 -------- Run | Yrd Mat Mat Min Mat Hostile Shots Fired 266 | . 86 75 24 81 Missed 104 | . 35 32 7 30 Hits 162 | . 51 43 17 51 Melee 4 | . . . . 4 Projectile 158 | . 51 43 17 47 AOE 1 | . . . . 1 Critical Strikes 3 | . 1 . . 2 Damage Taken 2200 | . 692 427 146 935 Core 903 | . 190 112 50 551 Absorbed by Shields . | . . . . . Core Remaining (%) 61 | 100 24 . 59 . Volleys Fired 71 | 8 21 13 13 16 Largest 3 | 2 2 3 3 2 Hottest 150 | 60 90 140 150 128 Shots Fired 112 | 16 29 28 19 20 Gun 93 | 16 19 28 18 12 Cannon . | . . . . . Launcher 18 | . 10 . . 8 Special 1 | . . . 1 . Kinetic 15 | 8 . . 4 3 Thermal 79 | 8 19 28 15 9 Explosive 18 | . 10 . . 8 Electromagnetic . | . . . . . Robot Hit Streak 7 | 3 5 7 6 6 Robot Miss Streak 5 | 3 4 5 3 4 Penetration Max . | . . . . . Secondary Targets 2 | . . 2 . . Max Gunslinging Chain 1 | . . 1 . . Shots Hit Robots 66 | 8 17 16 12 13 Core Hits 46 | 4 22 4 4 12 Critical Kills . | . . . . . Critical Parts Destroyed 1 | . . . . 1 Critical Strikes 4 | . 1 2 . 1 Burn 3 | . 1 2 . . Destroy 1 | . . . . 1 Melee Attacks . | . . . . . Impact . | . . . . . Slashing . | . . . . . Piercing . | . . . . . Sneak Attacks . | . . . . . Combat Hostiles . | . . . . . Follow-up Attacks . | . . . . . Damage Inflicted 1552 | 89 835 202 153 273 Guns 681 | 89 123 202 153 114 Cannons . | . . . . . Explosions 852 | . 712 . . 140 Melee . | . . . . . Ramming 19 | . . . . 19 Kinetic 73 | 46 . . 15 12 Thermal 608 | 43 123 202 138 102 Explosive 852 | . 712 . . 140 Electromagnetic . | . . . . . Impact . | . . . . . Slashing . | . . . . . Piercing . | . . . . . Highest Corruption 4 | . . . . 4 Average Corruption 2 | . . . . 2 Corruption Purged . | . . . . . Corruption Blocked . | . . . . . Effects 1 | . . . . 1 Data Loss (minor) 1 | . . . . 1 Overload Shots . | . . . . . Overflow Damage . | . . . . . Projectiles . | . . . . . Explosions . | . . . . . Melee . | . . . . . Knockbacks . | . . . . . Impact . | . . . . . Kinetic . | . . . . . Secondary . | . . . . . Self-Inflicted Damage 98 | . 57 . . 41 Shots 5 | . 4 . . 1 Rammed 3 | . . . . 3 Targets Rammed 3 | . . . . 3 Kicked . | . . . . . Crushed . | . . . . . Highest Temperature 156 | . 134 156 51 63 Average Temperature 58 | . 51 96 16 27 Received Heat Transfer 684 | . 351 72 . 261 Siege Activations . | . . . . . Martial Activations . | . . . . . Shielding Activations . | . . . . . Robots Disrupted . | . . . . . Combat Hostiles . | . . . . . Robots Corrupted . | . . . . . Combat Hostiles . | . . . . . Parts Fried . | . . . . . Impact Corruptions . | . . . . . Robots Melted 1 | . 1 . . . Combat Hostiles 1 | . 1 . . . Parts Melted 3 | . 1 2 . . Heat Transferred 1813 | 100 397 740 407 169 Parts Sabotaged . | . . . . . Parts Stolen . | . . . . . Parts Stripped . | . . . . . Power Chain Reactions . | . . . . . Alert | -11 -10 -9 -9 -8 ------- Run | Yrd Mat Mat Min Mat Maximum Alert Level . | . . . . . Low Security (%) 100 | 100 100 100 100 100 Level 1 . | . . . . . Level 2 . | . . . . . Level 3 . | . . . . . Level 4 . | . . . . . Level 5 . | . . . . . High Security . | . . . . . Max Security . | . . . . . Peak Influence 188 | 5 188 143 114 126 Initial 62 | . 3 62 24 5 Average 57 | 1 66 84 61 37 Influence Increases 815 | 15 343 141 130 186 Destroy 0b10 Robot/C 400 | . 200 80 80 40 Destroy 0b10 Robot/NC 20 | 15 5 . . . Destroy Leader 90 | . 40 10 20 20 Successful Hack 25 | . 10 6 . 9 Disable Machine 15 | . . . 15 . Destroy Structure 70 | . 43 . . 27 Partial Spotted 30 | . 15 15 . . Lose Combat Pursuer 165 | . 30 30 15 90 Influence Decreases 719 | 10 200 226 179 104 Entered New Map 136 | . 2 86 39 9 Time Decay 378 | 10 138 60 120 50 Lost Part 205 | . 60 80 20 45 Squads Dispatched 7 | . 2 . 1 4 Investigation 5 | . 2 . 1 2 Extermination . | . . . . . Reinforcement 1 | . . . . 1 Assault . | . . . . . Garrison 1 | . . . . 1 Intercept . | . . . . . Searches Triggered . | . . . . . Construction Impeded . | . . . . . Haulers Reinforced . | . . . . . Active Scanning Responses . | . . . . . Cargo Convoy Interrupts . | . . . . . Stealth | -11 -10 -9 -9 -8 --------- Run | Yrd Mat Mat Min Mat Distress Signals 6 | . . . 1 5 Communications Jammed . | . . . . . Distress Signals . | . . . . . Times Spotted 64 | . 14 13 9 28 Peak Tracking Total 16 | . 6 8 3 16 Tactical Retreats 5 | . 1 1 1 2 Traps | -11 -10 -9 -9 -8 ------- Run | Yrd Mat Mat Min Mat Traps Triggered 1 | . . . . 1 Indirectly . | . . . . . Trap Hack Attempts . | . . . . . Triggered . | . . . . . Disarmed . | . . . . . Reprogrammed . | . . . . . Reused . | . . . . . Traps Extracted . | . . . . . Installed . | . . . . . Triggered . | . . . . . Machines | -11 -10 -9 -9 -8 ---------- Run | Yrd Mat Mat Min Mat Machines Disabled 1 | . . . 1 . Max in Single Turn 1 | . . . 1 . Machines Repaired . | . . . . . Machines Dismantled . | . . . . . Machines Sabotaged . | . . . . . Overloaded Fab Kills . | . . . . . Hacking | -11 -10 -9 -9 -8 --------- Run | Yrd Mat Mat Min Mat Machines Accessed 13 | . 5 2 2 4 Terminals 10 | . 5 . 1 4 Fabricators . | . . . . . Repair Stations 1 | . . 1 . . Recycling Units . | . . . . . Scanalyzers 1 | . . 1 . . Garrison Access . | . . . . . Total Hacks 43 | . 17 5 4 17 Successful 19 | . 7 3 1 8 Failed 24 | . 10 2 3 9 Catastrophic 1 | . . . . 1 Database Lockouts . | . . . . . Manual 27 | . 12 . 3 12 Terminals 37 | . 17 . 3 17 Fabricators . | . . . . . Repair Stations 2 | . . 2 . . Recycling Units . | . . . . . Scanalyzers 3 | . . 3 . . Garrison Access . | . . . . . Terminal Hacks 9 | . 4 . 1 4 Record 1 | . 1 . . . Prototype ID Bank 4 | . 2 . . 2 Open Door 1 | . . . 1 . Recall Investigation 1 | . . . . 1 Zone Layout 2 | . 1 . . 1 Fabricator Hacks . | . . . . . Repair Station Hacks 1 | . . 1 . . Refit 1 | . . 1 . . Recycling Unit Hacks . | . . . . . Scanalyzer 2 | . . 2 . . Retrieve Study 2 | . . 2 . . Garrison Access Hacks . | . . . . . Unauthorized Hacks 7 | . 3 . . 4 Terminals 7 | . 3 . . 4 Botnet 7 | . 3 . . 4 Fabricators . | . . . . . Repair Stations . | . . . . . Recycling Units . | . . . . . Scanalyzers . | . . . . . Garrison Access . | . . . . . Data Cores Recovered . | . . . . . Used . | . . . . . Hacking Detections 10 | . 4 1 1 4 Full Trace Events 7 | . 4 . 1 2 Feedback Events . | . . . . . Feedback Blocked . | . . . . . Robot Schematics Acquired . | . . . . . Robots Built . | . . . . . Authchips . | . . . . . Time . | . . . . . Total Robot Build Rating . | . . . . . Part Schematics Acquired . | . . . . . Parts Built . | . . . . . Authchips . | . . . . . Time . | . . . . . Total Part Build Rating . | . . . . . Part Studies Acquired 2 | . . 2 . . Parts Repaired . | . . . . . Time . | . . . . . Parts Recycled . | . . . . . Recycled Matter . | . . . . . Retrieved Matter . | . . . . . Retrieved Components . | . . . . . Parts Scanalyzed . | . . . . . Part Schematics Acquired . | . . . . . Parts Damaged . | . . . . . Bothacking | -11 -10 -9 -9 -8 ------------ Run | Yrd Mat Mat Min Mat Used RIF Installer . | . . . . . Robots Hacked . | . . . . . Non-combat . | . . . . . Combat . | . . . . . Robot Hacks Applied . | . . . . . Relay Couplers Released . | . . . . . Fabnet Peak Effective % . | . . . . . Robots Rewired . | . . . . . Allies Hacked . | . . . . . Hacks Repelled . | . . . . . Allies | -11 -10 -9 -9 -8 -------- Run | Yrd Mat Mat Min Mat Total Allies . | . . . . . Largest Group . | . . . . . Highest-Rated Group . | . . . . . Highest-Rated Ally . | . . . . . Total Orders . | . . . . . Ally Attacks . | . . . . . Total Damage . | . . . . . Kills . | . . . . . Allies Corrupted . | . . . . . Allies Melted . | . . . . . Intel | -11 -10 -9 -9 -8 ------- Run | Yrd Mat Mat Min Mat Active Infowar (turns) 326 | . 228 . . 98 Optics 98 | . . . . 98 Terrain 228 | . 228 . . . Robot Analysis Total . | . . . . . Derelict Logs Recovered 2 | . . . 2 . Drone Launches . | . . . . . Drone Recoveries . | . . . . . Exploration | -11 -10 -9 -9 -8 ------------- Run | Yrd Mat Mat Min Mat Turns Passed 969 | 94 345 135 251 144 Spaces Moved 1122 | 71 333 133 375 210 Core 80 | 5 2 . . 73 Treads . | . . . . . Legs 60 | . 31 29 . . Wheels 366 | 66 300 . . . Hover . | . . . . . Flight 616 | . . 104 375 137 Fastest Speed 31 | 50 80 34 34 31 Average Speed 57 | 77 84 60 35 43 Slowest Speed 150 | 80 150 130 120 117 Overloaded Moves . | . . . . . Propulsion Burnouts . | . . . . . Robots Hopped 7 | . . 2 . 5 Potential Cave-ins . | . . . . . Cave-ins Triggered . | . . . . . Exploration Rate (%) 33 | 3 52 18 57 35 Regions Visited 4 Branch Regions 1 Pre-discovered Areas . | . . . . . Known Exits Taken . | . . . . . Unknown Exits Taken 4 | 1 1 1 1 . Scrap Searched 1 | . . . 1 . Spaces Dug . | . . . . . Terrain Destroyed 89 | . 43 . . 46 Melee . | . . . . . Projectile . | . . . . . AOE 89 | . 43 . . 46 Terrain Rammed . | . . . . . Walls Destroyed . | . . . . . Machines Disabled . | . . . . . Actions | -11 -10 -9 -9 -8 --------- Run | Yrd Mat Mat Min Mat Total 1322 | 93 368 155 469 237 Wait 81 | . 4 1 69 7 Move 1105 | 70 332 128 374 201 Hop 6 | . . 2 . 4 Pick Up 16 | 8 3 3 1 1 Fast Attach 17 | . 2 6 7 2 Attach 12 | 6 2 1 2 1 Detach 2 | 1 . . 1 . Swap 4 | . 2 . 1 1 Drop 6 | . 2 1 1 2 Fire 71 | 8 21 13 13 16 Melee . | . . . . . Ram 2 | . . . . 2 Kick . | . . . . . Crush . | . . . . . Escape Stasis . | . . . . . Rewire . | . . . . . Trap . | . . . . . Miscellaneous . | . . . . . Route ------- -11/Scrapyard -10/Materials (discovered 2 exits: *Mat / [*Min]) -9/Materials -9/Mines -8/Materials History --------- Turn | Location | Event 15 | -11/Scrapyard | Discovered new exit (range 15) 95 | -11/Scrapyard | Entered Materials 266 | -10/Materials | Discovered new exit (range 16) 308 | -10/Materials | Build established: Mutant 415 | -10/Materials | Core integrity fell below 50% 420 | -10/Materials | Discovered new exit (range 16) 440 | -10/Materials | Entered another Materials area 440 | -9/Materials | Evolved 2 slots: Propulsion x1, Weapon x1 447 | -9/Materials | Lost 6 parts (1p2n1u2w) 567 | -9/Materials | Discovered new exit (range 15) 575 | -9/Materials | Entered Mines 589 | -9/Mines | Lost 8 parts (1p3n2u2w) 687 | -9/Mines | Assembled infested the area 692 | -9/Mines | Assisted by a Guerilla fighting off Assembled 760 | -9/Mines | Discovered new exit (range 7) 789 | -9/Mines | Found the Drone Emporium 799 | -9/Mines | Learned Materials terminal intel 826 | -9/Mines | Entered Materials 826 | -8/Materials | Evolved 2 slots: Propulsion x1, Utility x1 827 | -8/Materials | Loaded intel: 12 terminal locations 891 | -8/Materials | Garrison activated, responded to threat 932 | -8/Materials | Core integrity fell below 50% 942 | -8/Materials | Core integrity fell below 20% 967 | -8/Materials | Lost 9 parts (4n1u4w) 970 | -8/Materials | Core destroyed Last Messages --------------- 00941_ Slammed into G-47 Trooper. 00941_ U-05 Engineer builds a Wall. 00941_ U-05 Engineer destroyed. 00945_ Penetrated by Slug. 00947_ Triggered Shock Trap. 00947_ The floor emits a surge of raw power. 00947_ System corrupted (+2). 00947_ U-05 Engineer builds a Door. 00948_ U-05 Engineer lays Concrete. 00952_ K-01 Serf cleans the Nuclear Reactor. 00956_ K-01 Serf collects debris. 00958_ System corrupted: Component data lost. 00958_ K-01 Serf collects debris. 00961_ K-01 Serf cleans the Nuclear Reactor. 00962_ K-01 Serf collects debris. 00968_ Slammed into T-07 Excavator. 00968_ Destabilizing: System corrupted (+2). 00969_ T-07 Excavator sends out distress signal. 00970_ Slammed into A-02 Transporter. Map ----- +----------------------------------------------------+ | | | | | | | ?????????????????????????????????????????????????? | | ?????????????????????????????????????????????????? | | ?????????????????????????????????????????????????? | | ?????????????????????????????????????????????????? | | ?????????????????????????????????????????????????? | | ?????????????????????????????????????????????????? | | ?????????????????????????????????????????????????? | | ?????????????????????????????????????????????????? | | ?????????????????????????????????????????????????? | | #????????????????????????????????????????????????? | | #????????????????????????????????????????????????? | | #????????????????????????????????????????????????? | | #????????????????????????????????????????????????? | | #?????????+??????????????????????????????????????? | | ########## ###?T?????????????????????????????????? | | # +???????????????????????????????????? | | # #???????????????????????????????????? | | # " """ #???????????????????????????????????? | | + "G" """ #??????????????????????????+????????? | | # " " """ #?????????????????????? #????????? | | #= #?????????????????? #????????? | | # ###+########### +????????? | | w w t @a #????????? | | ############### #????????? | | """ """"" #????????????????????????????? | | """ """"""""" #????????????????????????????? | | """ """ """ #????????????????????????????? | | #????????????????????????????? | | #????????????????????????????? | | " "" """"" #????????????????????????????? | | """"""" """"""""" #????????????????????????????? | | "" """ """ """ #????????????????????????????? | | #????????????????????????????? | | ! #????????????????????????????? | | ############### #????????????????????????????? | | ??????????????# #????????????????????????????? | | ??????????????# ????????????????????????????? | | ??????????????+ ???????????????????????????? | | ??????????????# ??????????????????????????? | | ??????????????# ??????????????????????????? | | ??????????????# ?????????????????????????? | | ??????????????######### ?????????????????????????? | | ??????????????????"""????????????????????????????? | | ??????????????????"T"????????????????????????????? | | ?????????????????????????????????????????????????? | | ?????????????????????????????????????????????????? | | ?????????????????????????????????????????????????? | +----------------------------------------------------+ Best States ------------- Heat Dissipation 41 Energy Generation 14 Energy Capacity 300 Matter Stores 300 Matter Capacity 300 Sight Range 20 Terrain Scan Range 16 Terrain Scan Density 10 Armor Coverage 80 Evasion (%) 63 Targeting Accuracy 6 Item Schematics ----------------- None Robot Schematics ------------------ None Fabricated ------------ Nothing Repaired ---------- Nothing Studied --------- Flight Unit | -9/Materials | Hacked Med. Laser | -9/Materials | Hacked Alien Tech Used ----------------- None Achievements -------------- None Challenges ------------ None Game ------ Seed StasisPulseBeam Manual? 0 Play Time 00:17:01 Cumulative 44.3 hours Start 2026.07.25 @ 15:17:52 End 2026.07.25 @ 15:39:08 Sessions 1 Manual Loads 0 Difficulty Rogue Special Mode None Game No. 77 Rogue 77 Adventurer 0 Explorer 0 Win Type - Total 0 Types 0/0/0/0/0/0/0/0/0/0 Lore% 28 Gallery% 32 Achievement% 26 Wizard Run 0 Options --------- Layout 1 ASCII 0 Keyboard 0 Movement Numpad Keybinds 0 Fullscreen 1 Font 24/Smallcaps Map View 50x35 Zoom Use 0% Tactical HUD 1 Map Filters NONE Filters NONE Steam 1 RUN: 7e21431b-01c8-467a-92ca-2f638832eea8